[Event "*** Titled Tuesday Blitz"]
[Site "Chess.com"]
[Date "2019.08.06"]
[Round "4"]
[White "Micki-taryan"]
[Black "sergoy"]
[Result "1-0"]
[WhiteElo "2965"]
[BlackElo "2845"]
[TimeControl "180+2"]
[EndTime "13:51:19 PDT"]
[Termination "Micki-taryan won on time"]

1. Nf3 {[%clk 0:03:01.9]} 1... Nf6 {[%clk 0:03:00.7]} 2. g3 {[%clk 0:03:02.8]}
2... g6 {[%clk 0:03:01.8]} 3. Bg2 {[%clk 0:03:04.3]} 3... Bg7 {[%clk 0:03:03.4]}
4. O-O {[%clk 0:03:05.4]} 4... O-O {[%clk 0:03:04.9]} 5. c4 {[%clk 0:03:01.2]}
5... c6 {[%clk 0:03:05.9]} 6. b3 {[%clk 0:03:00.8]} 6... Ne4 {[%clk 0:03:04.8]}
7. d4 {[%clk 0:03:01.4]} 7... d5 {[%clk 0:03:06.1]} 8. Bb2 {[%clk 0:03:00.8]}
8... Bf5 {[%clk 0:03:06.8]} 9. e3 {[%clk 0:03:00.5]} 9... a5 {[%clk 0:03:06.8]}
10. Nc3 {[%clk 0:02:51.7]} 10... Nxc3 {[%clk 0:03:04]} 11. Bxc3 {[%clk
0:02:53.6]} 11... Be4 {[%clk 0:03:05.6]} 12. Qe2 {[%clk 0:02:48]} 12... Nd7
{[%clk 0:03:03.2]} 13. Rfd1 {[%clk 0:02:41.3]} 13... a4 {[%clk 0:02:52]} 14. b4
{[%clk 0:02:37.3]} 14... dxc4 {[%clk 0:02:46.2]} 15. Qxc4 {[%clk 0:02:35]} 15...
Nb6 {[%clk 0:02:45.8]} 16. Qe2 {[%clk 0:02:35.8]} 16... Nd5 {[%clk 0:02:47]} 17.
Be1 {[%clk 0:02:30.7]} 17... a3 {[%clk 0:02:46.7]} 18. Rac1 {[%clk 0:02:27.2]}
18... Qb6 {[%clk 0:02:44.1]} 19. Qc4 {[%clk 0:02:18.6]} 19... Rfd8 {[%clk
0:01:53.9]} 20. Qb3 {[%clk 0:02:16.1]} 20... e6 {[%clk 0:01:46.9]} 21. Rc4
{[%clk 0:01:45.9]} 21... Nc7 {[%clk 0:01:38.2]} 22. Rcc1 {[%clk 0:01:34.7]}
22... Qb5 {[%clk 0:01:25.9]} 23. Bf1 {[%clk 0:01:25.8]} 23... Qh5 {[%clk
0:01:25.8]} 24. Nd2 {[%clk 0:01:20.9]} 24... Bd5 {[%clk 0:01:26.3]} 25. Qc2
{[%clk 0:01:21.4]} 25... e5 {[%clk 0:01:21.2]} 26. e4 {[%clk 0:01:13.5]} 26...
Be6 {[%clk 0:01:21.1]} 27. d5 {[%clk 0:01:12.2]} 27... Bd7 {[%clk 0:01:11.3]}
28. b5 {[%clk 0:01:08.7]} 28... Nxb5 {[%clk 0:01:08.9]} 29. Bxb5 {[%clk
0:01:09.7]} 29... cxb5 {[%clk 0:01:10.7]} 30. f3 {[%clk 0:01:11.1]} 30... Bh6
{[%clk 0:01:06]} 31. Qd3 {[%clk 0:01:11.7]} 31... Ra4 {[%clk 0:00:55.3]} 32. Bf2
{[%clk 0:01:11.2]} 32... f5 {[%clk 0:00:29.8]} 33. Be3 {[%clk 0:01:09.8]} 33...
f4 {[%clk 0:00:19.2]} 34. gxf4 {[%clk 0:01:03.3]} 34... exf4 {[%clk 0:00:19.7]}
35. Bb6 {[%clk 0:01:03.7]} 35... Re8 {[%clk 0:00:18.6]} 36. Kh1 {[%clk
0:01:00.6]} 36... Bg7 {[%clk 0:00:17.5]} 37. Rg1 {[%clk 0:00:59.6]} 37... Qe5
{[%clk 0:00:14.5]} 38. Rc7 {[%clk 0:00:54.2]} 38... Qd6 {[%clk 0:00:15.5]} 39.
Rgc1 {[%clk 0:00:52.1]} 39... Qxb6 {[%clk 0:00:12.1]} 40. Rxd7 {[%clk 0:00:53]}
40... Qd4 {[%clk 0:00:11.9]} 41. Qe2 {[%clk 0:00:34.7]} 41... Qe3 {[%clk
0:00:12.3]} 42. Qg2 {[%clk 0:00:34.1]} 42... Rd4 {[%clk 0:00:12.7]} 43. Rcc7
{[%clk 0:00:34.5]} 43... Be5 {[%clk 0:00:11.6]} 44. Rxh7 {[%clk 0:00:34.5]} 1-0

[Event "*** Titled Tuesday Blitz"]
[Site "Chess.com"]
[Date "2019.08.06"]
[Round "4"]
[White "valeriocarnicelli"]
[Black "fancyknightmaneuvers"]
[Result "1-0"]
[WhiteElo "2425"]
[BlackElo "2549"]
[TimeControl "180+2"]
[EndTime "13:51:20 PDT"]
[Termination "valeriocarnicelli won by resignation"]

1. e4 {[%clk 0:02:55.7]} 1... c5 {[%clk 0:03:00.7]} 2. Nf3 {[%clk 0:02:45.2]}
2... e6 {[%clk 0:03:00.9]} 3. d4 {[%clk 0:02:46.4]} 3... cxd4 {[%clk 0:03:02.8]}
4. Nxd4 {[%clk 0:02:47.9]} 4... Nc6 {[%clk 0:03:04.3]} 5. Nb5 {[%clk 0:02:48.4]}
5... d6 {[%clk 0:03:03.8]} 6. Bf4 {[%clk 0:02:49.5]} 6... e5 {[%clk 0:03:05.2]}
7. Be3 {[%clk 0:02:50.9]} 7... Nf6 {[%clk 0:02:59.9]} 8. N1c3 {[%clk 0:02:50]}
8... a6 {[%clk 0:02:56.6]} 9. Na3 {[%clk 0:02:51.2]} 9... b5 {[%clk 0:02:56.6]}
10. Nd5 {[%clk 0:02:52]} 10... Nxd5 {[%clk 0:02:52.2]} 11. exd5 {[%clk
0:02:52.9]} 11... Ne7 {[%clk 0:02:52.8]} 12. c4 {[%clk 0:02:53.5]} 12... b4
{[%clk 0:02:49]} 13. Nc2 {[%clk 0:02:54.2]} 13... Nf5 {[%clk 0:02:49.2]} 14. Bd2
{[%clk 0:02:45]} 14... a5 {[%clk 0:02:49.2]} 15. Bd3 {[%clk 0:02:44.8]} 15...
Be7 {[%clk 0:02:48.5]} 16. O-O {[%clk 0:02:44.8]} 16... O-O {[%clk 0:02:48.7]}
17. f4 {[%clk 0:02:36.2]} 17... g6 {[%clk 0:02:36.2]} 18. fxe5 {[%clk
0:02:36.3]} 18... dxe5 {[%clk 0:02:37.3]} 19. Kh1 {[%clk 0:02:24.6]} 19... Bc5
{[%clk 0:02:33.3]} 20. Bxf5 {[%clk 0:02:12.3]} 20... Bxf5 {[%clk 0:02:33]} 21.
Bh6 {[%clk 0:02:13.5]} 21... Re8 {[%clk 0:02:32]} 22. Ne3 {[%clk 0:02:14.8]}
22... Be4 {[%clk 0:02:23.4]} 23. Qg4 {[%clk 0:02:01.5]} 23... Bxe3 {[%clk
0:02:06.8]} 24. Bxe3 {[%clk 0:02:02.4]} 24... f5 {[%clk 0:02:06.3]} 25. Qe2
{[%clk 0:01:37.8]} 25... Rc8 {[%clk 0:02:06]} 26. Rac1 {[%clk 0:01:37.3]} 26...
Qh4 {[%clk 0:02:03.4]} 27. Rfd1 {[%clk 0:01:31.7]} 27... Red8 {[%clk 0:01:57.9]}
28. d6 {[%clk 0:01:19.8]} 28... Rd7 {[%clk 0:01:47.4]} 29. Bb6 {[%clk
0:01:17.8]} 29... Qf6 {[%clk 0:01:12.8]} 30. c5 {[%clk 0:01:16.2]} 30... Qf7
{[%clk 0:01:12.5]} 31. Bxa5 {[%clk 0:01:13.2]} 31... Qxa2 {[%clk 0:01:03.7]} 32.
Bxb4 {[%clk 0:01:13.8]} 32... Qb3 {[%clk 0:01:03.1]} 33. Ba3 {[%clk 0:01:09.7]}
33... Qb7 {[%clk 0:01:01]} 34. b4 {[%clk 0:01:05.9]} 34... f4 {[%clk 0:01:00.2]}
35. Re1 {[%clk 0:01:02.8]} 35... Bc6 {[%clk 0:00:59.8]} 36. Qxe5 {[%clk
0:00:49.5]} 36... Bxg2+ {[%clk 0:00:57.6]} 37. Kg1 {[%clk 0:00:50.7]} 37... Bh3
{[%clk 0:00:57.3]} 38. Qe4 {[%clk 0:00:46.6]} 38... Qa6 {[%clk 0:00:50.7]} 39.
Qc4+ {[%clk 0:00:43.8]} 39... Qxc4 {[%clk 0:00:48.3]} 40. Rxc4 {[%clk
0:00:45.7]} 40... Ra7 {[%clk 0:00:49.7]} 41. Rc3 {[%clk 0:00:44.1]} 41... Bd7
{[%clk 0:00:49.2]} 42. Re7 {[%clk 0:00:44.3]} 42... Rb7 {[%clk 0:00:42.4]} 43.
b5 {[%clk 0:00:38.8]} 43... Rxb5 {[%clk 0:00:37.9]} 44. Rxd7 {[%clk 0:00:39.5]}
44... Re8 {[%clk 0:00:39.4]} 45. Kf2 {[%clk 0:00:27.8]} 45... Rb1 {[%clk
0:00:36.8]} 46. Re7 {[%clk 0:00:27.6]} 46... Reb8 {[%clk 0:00:34.1]} 47. d7
{[%clk 0:00:25.5]} 1-0

[Event "*** Titled Tuesday Blitz"]
[Site "Chess.com"]
[Date "2019.08.06"]
[Round "4"]
[White "oskariot"]
[Black "Vuk2000"]
[Result "0-1"]
[WhiteElo "2669"]
[BlackElo "2725"]
[TimeControl "180+2"]
[EndTime "13:51:21 PDT"]
[Termination "Vuk2000 won on time"]

1. d4 {[%clk 0:03:01.9]} 1... e6 {[%clk 0:03:00.9]} 2. Nf3 {[%clk 0:03:02]} 2...
Nf6 {[%clk 0:03:01.6]} 3. g3 {[%clk 0:03:03.3]} 3... d5 {[%clk 0:03:01]} 4. Bg2
{[%clk 0:03:04.8]} 4... Be7 {[%clk 0:03:01.3]} 5. O-O {[%clk 0:03:06.4]} 5...
O-O {[%clk 0:03:02.8]} 6. c4 {[%clk 0:03:07.5]} 6... dxc4 {[%clk 0:03:04.3]} 7.
Ne5 {[%clk 0:03:08.4]} 7... Nc6 {[%clk 0:03:04.9]} 8. Bxc6 {[%clk 0:03:08.3]}
8... bxc6 {[%clk 0:03:06.8]} 9. Nxc6 {[%clk 0:03:09.9]} 9... Qe8 {[%clk
0:03:08.3]} 10. Nxe7+ {[%clk 0:03:11.7]} 10... Qxe7 {[%clk 0:03:10.2]} 11. Qa4
{[%clk 0:03:11.7]} 11... e5 {[%clk 0:03:11.1]} 12. dxe5 {[%clk 0:03:13]} 12...
Qxe5 {[%clk 0:03:12.9]} 13. Qxc4 {[%clk 0:03:14.6]} 13... Be6 {[%clk 0:03:12.8]}
14. Qc2 {[%clk 0:03:06.2]} 14... Bf5 {[%clk 0:03:12.4]} 15. Qc4 {[%clk
0:02:59.1]} 15... Be6 {[%clk 0:03:12.7]} 16. Qc2 {[%clk 0:02:57.3]} 16... Bf5
{[%clk 0:02:51.9]} 17. Qc4 {[%clk 0:02:56.5]} 17... Nd5 {[%clk 0:02:52.9]} 18.
Nc3 {[%clk 0:02:51.2]} 18... Nb6 {[%clk 0:02:46.5]} 19. Qf4 {[%clk 0:02:51.3]}
19... Qe6 {[%clk 0:02:32.4]} 20. Qxc7 {[%clk 0:02:44.4]} 20... Rfc8 {[%clk
0:02:33]} 21. Qf4 {[%clk 0:02:41.9]} 21... Rc4 {[%clk 0:02:29]} 22. Qe3 {[%clk
0:02:40.2]} 22... Qc6 {[%clk 0:02:28.5]} 23. Qf3 {[%clk 0:02:23.8]} 23... Qe6
{[%clk 0:01:59.9]} 24. Be3 {[%clk 0:01:55.4]} 24... Re8 {[%clk 0:01:59.3]} 25.
Rfd1 {[%clk 0:01:42.3]} 25... Bg4 {[%clk 0:01:43.8]} 26. Qb7 {[%clk 0:01:42.7]}
26... Na4 {[%clk 0:01:36.3]} 27. Nxa4 {[%clk 0:01:16.6]} 27... Rxa4 {[%clk
0:01:36.4]} 28. Qb5 {[%clk 0:01:17.6]} 28... Re4 {[%clk 0:01:27.4]} 29. Qd3
{[%clk 0:01:10.2]} 29... h5 {[%clk 0:01:15.7]} 30. b3 {[%clk 0:01:00.1]} 30...
h4 {[%clk 0:01:08.5]} 31. Rac1 {[%clk 0:01:00.2]} 31... hxg3 {[%clk 0:00:48.2]}
32. hxg3 {[%clk 0:01:02.1]} 32... Qg6 {[%clk 0:00:49.8]} 33. Rc5 {[%clk
0:00:47.6]} 33... f5 {[%clk 0:00:24.9]} 34. Qd5+ {[%clk 0:00:34.3]} 34... Kh7
{[%clk 0:00:22.6]} 35. Rc6 {[%clk 0:00:27.4]} 35... Qh5 {[%clk 0:00:20.4]} 36.
Rd2 {[%clk 0:00:12.6]} 36... Rxe3 {[%clk 0:00:13.8]} 37. fxe3 {[%clk 0:00:14.5]}
37... Rxe3 {[%clk 0:00:13]} 38. Kf2 {[%clk 0:00:11.2]} 38... Re4 {[%clk
0:00:14.2]} 39. Qxe4 {[%clk 0:00:04.6]} 39... fxe4 {[%clk 0:00:16.1]} 40. Ke3
{[%clk 0:00:05.9]} 40... Qg5+ {[%clk 0:00:17]} 0-1

[Event "*** Titled Tuesday Blitz"]
[Site "Chess.com"]
[Date "2019.08.06"]
[Round "4"]
[White "edgarrodrigues"]
[Black "nOcHeaTiNgKiD"]
[Result "0-1"]
[WhiteElo "2420"]
[BlackElo "2449"]
[TimeControl "180+2"]
[EndTime "13:51:25 PDT"]
[Termination "nOcHeaTiNgKiD won by checkmate"]

1. e4 {[%clk 0:03:01.9]} 1... e5 {[%clk 0:02:49.6]} 2. Nf3 {[%clk 0:03:02.4]}
2... Nf6 {[%clk 0:02:50.8]} 3. Nxe5 {[%clk 0:03:03]} 3... d6 {[%clk 0:02:51.4]}
4. Nf3 {[%clk 0:03:04.1]} 4... Nxe4 {[%clk 0:02:52.6]} 5. Nc3 {[%clk 0:03:05.5]}
5... Nf6 {[%clk 0:02:53.1]} 6. d4 {[%clk 0:03:05.2]} 6... Be7 {[%clk 0:02:51.9]}
7. d5 {[%clk 0:03:05.4]} 7... Nbd7 {[%clk 0:02:50.8]} 8. Be3 {[%clk 0:03:05.1]}
8... O-O {[%clk 0:02:50.2]} 9. Qd2 {[%clk 0:03:05.4]} 9... Ne5 {[%clk
0:02:51.2]} 10. Nd4 {[%clk 0:03:00.1]} 10... c5 {[%clk 0:02:49.3]} 11. dxc6
{[%clk 0:02:59.7]} 11... bxc6 {[%clk 0:02:49.6]} 12. h3 {[%clk 0:02:58.9]} 12...
Qc7 {[%clk 0:02:43.5]} 13. f4 {[%clk 0:02:58.4]} 13... Ng6 {[%clk 0:02:42.2]}
14. O-O-O {[%clk 0:02:49]} 14... Rb8 {[%clk 0:02:38.8]} 15. g4 {[%clk 0:02:42]}
15... d5 {[%clk 0:02:14.9]} 16. g5 {[%clk 0:02:19.2]} 16... Ne4 {[%clk
0:01:49.3]} 17. Nxe4 {[%clk 0:02:19.2]} 17... dxe4 {[%clk 0:01:51.2]} 18. f5
{[%clk 0:01:57.9]} 18... Ne5 {[%clk 0:01:41.8]} 19. f6 {[%clk 0:01:47.5]} 19...
Bb4 {[%clk 0:01:26.3]} 20. c3 {[%clk 0:01:45.3]} 20... Ba5 {[%clk 0:01:26]} 21.
fxg7 {[%clk 0:01:32.3]} 21... Rd8 {[%clk 0:01:25.5]} 22. Qc2 {[%clk 0:00:47.1]}
22... c5 {[%clk 0:01:15.2]} 23. Nb3 {[%clk 0:00:47.8]} 23... Nd3+ {[%clk
0:01:15.8]} 24. Bxd3 {[%clk 0:00:48.5]} 24... exd3 {[%clk 0:01:16.6]} 25. Qf2
{[%clk 0:00:38]} 25... c4 {[%clk 0:01:07.4]} 26. Nxa5 {[%clk 0:00:37.1]} 26...
Qxa5 {[%clk 0:01:08.3]} 27. Rhf1 {[%clk 0:00:33]} 27... Be6 {[%clk 0:01:08.4]}
28. a3 {[%clk 0:00:28.5]} 28... Rb3 {[%clk 0:01:04.4]} 29. Bd4 {[%clk
0:00:22.2]} 29... Rdb8 {[%clk 0:00:56.7]} 30. Rd2 {[%clk 0:00:14.4]} 30... Rxa3
{[%clk 0:00:51.7]} 31. bxa3 {[%clk 0:00:13]} 31... Qxa3+ {[%clk 0:00:49.9]} 32.
Rb2 {[%clk 0:00:14.2]} 32... Qa1+ {[%clk 0:00:50.7]} 33. Kd2 {[%clk 0:00:14.1]}
33... Rxb2+ {[%clk 0:00:35.1]} 34. Ke3 {[%clk 0:00:12.1]} 34... Qa2 {[%clk
0:00:23.2]} 35. Qf6 {[%clk 0:00:12.7]} 35... Re2+ {[%clk 0:00:20.4]} 36. Kf3
{[%clk 0:00:13.9]} 36... Qa5 {[%clk 0:00:19]} 37. Qe7 {[%clk 0:00:10.9]} 37...
Qd5+ {[%clk 0:00:14]} 38. Kg3 {[%clk 0:00:12.1]} 38... Qg2+ {[%clk 0:00:10.7]}
39. Kf4 {[%clk 0:00:11.7]} 39... Re4# {[%clk 0:00:10.9]} 0-1

[Event "*** Titled Tuesday Blitz"]
[Site "Chess.com"]
[Date "2019.08.06"]
[Round "4"]
[White "Roachelley"]
[Black "Ibraev_Vasilj"]
[Result "0-1"]
[WhiteElo "2237"]
[BlackElo "2295"]
[TimeControl "180+2"]
[EndTime "13:51:26 PDT"]
[Termination "Ibraev_Vasilj won by resignation"]

1. d4 {[%clk 0:03:01.9]} 1... Nf6 {[%clk 0:02:59.2]} 2. c4 {[%clk 0:03:02.8]}
2... e6 {[%clk 0:02:59.6]} 3. Nc3 {[%clk 0:03:03.3]} 3... Bb4 {[%clk 0:02:59.5]}
4. Qc2 {[%clk 0:03:04.1]} 4... c5 {[%clk 0:02:59]} 5. dxc5 {[%clk 0:03:00.6]}
5... Bxc5 {[%clk 0:02:46.5]} 6. Nf3 {[%clk 0:02:57.5]} 6... b6 {[%clk
0:02:45.9]} 7. Bg5 {[%clk 0:02:55.2]} 7... Bb7 {[%clk 0:02:45.8]} 8. e3 {[%clk
0:02:53.2]} 8... Be7 {[%clk 0:02:45.8]} 9. Be2 {[%clk 0:02:53.3]} 9... d6 {[%clk
0:02:46.7]} 10. O-O {[%clk 0:02:53.4]} 10... Nbd7 {[%clk 0:02:47.4]} 11. Rfd1
{[%clk 0:02:53.5]} 11... a6 {[%clk 0:02:48]} 12. Rac1 {[%clk 0:02:49.9]} 12...
Rc8 {[%clk 0:02:45.1]} 13. Qa4 {[%clk 0:02:43.3]} 13... O-O {[%clk 0:02:42.4]}
14. Nd4 {[%clk 0:02:40.4]} 14... h6 {[%clk 0:02:38.5]} 15. Bh4 {[%clk
0:02:34.4]} 15... Qc7 {[%clk 0:02:38]} 16. b4 {[%clk 0:02:15.8]} 16... Ne5
{[%clk 0:02:26.6]} 17. Nb1 {[%clk 0:01:31.4]} 17... Qb8 {[%clk 0:02:23.8]} 18.
Qb3 {[%clk 0:01:31]} 18... Qa8 {[%clk 0:02:23.3]} 19. f3 {[%clk 0:01:30.2]}
19... Rfd8 {[%clk 0:02:19.5]} 20. Nd2 {[%clk 0:01:30.7]} 20... Ng6 {[%clk
0:01:55]} 21. Bf2 {[%clk 0:01:28.4]} 21... Bf8 {[%clk 0:01:39.8]} 22. Bf1 {[%clk
0:01:17.6]} 22... d5 {[%clk 0:01:37]} 23. Qb1 {[%clk 0:00:57.9]} 23... Ne5
{[%clk 0:01:28.8]} 24. a3 {[%clk 0:00:22.9]} 24... Nxc4 {[%clk 0:01:22.7]} 25.
Nxc4 {[%clk 0:00:24.8]} 25... dxc4 {[%clk 0:01:23.2]} 26. Rxc4 {[%clk
0:00:20.4]} 26... b5 {[%clk 0:01:21.6]} 27. Rxc8 {[%clk 0:00:20.2]} 27... Rxc8
{[%clk 0:01:20.2]} 28. Bd3 {[%clk 0:00:21.1]} 28... Nd7 {[%clk 0:01:12.1]} 29.
Bg3 {[%clk 0:00:20.1]} 29... Nb6 {[%clk 0:01:11.3]} 30. Qb2 {[%clk 0:00:14.2]}
30... Nc4 {[%clk 0:01:09.4]} 31. Bxc4 {[%clk 0:00:15.2]} 31... Rxc4 {[%clk
0:01:08.7]} 32. Nb3 {[%clk 0:00:16.2]} 32... Rc8 {[%clk 0:01:01.5]} 33. Be5
{[%clk 0:00:16.8]} 33... Bd5 {[%clk 0:01:00.1]} 34. e4 {[%clk 0:00:14.9]} 34...
Bxb3 {[%clk 0:00:46.9]} 35. Qxb3 {[%clk 0:00:16.8]} 35... a5 {[%clk 0:00:44.8]}
36. Bd6 {[%clk 0:00:15.6]} 36... Bxd6 {[%clk 0:00:41]} 37. Rxd6 {[%clk
0:00:17.5]} 37... axb4 {[%clk 0:00:41.8]} 38. Qxb4 {[%clk 0:00:17.5]} 38... Qa7+
{[%clk 0:00:31]} 39. Kf1 {[%clk 0:00:12.9]} 39... Rc1+ {[%clk 0:00:25.8]} 40.
Ke2 {[%clk 0:00:13.8]} 40... Qg1 {[%clk 0:00:25.2]} 41. Qd2 {[%clk 0:00:03.1]}
41... Qxg2+ {[%clk 0:00:19.9]} 42. Ke3 {[%clk 0:00:04.5]} 42... Qg1+ {[%clk
0:00:16]} 43. Kd3 {[%clk 0:00:05.7]} 43... Rd1 {[%clk 0:00:16.1]} 0-1

[Event "*** Titled Tuesday Blitz"]
[Site "Chess.com"]
[Date "2019.08.06"]
[Round "4"]
[White "Chopper1905"]
[Black "platy3"]
[Result "1-0"]
[WhiteElo "2834"]
[BlackElo "2864"]
[TimeControl "180+2"]
[EndTime "13:51:27 PDT"]
[Termination "Chopper1905 won by resignation"]

1. e4 {[%clk 0:03:01.9]} 1... c5 {[%clk 0:02:55.2]} 2. Nf3 {[%clk 0:03:03.3]}
2... d6 {[%clk 0:02:52.9]} 3. d4 {[%clk 0:03:04.8]} 3... cxd4 {[%clk 0:02:54]}
4. Nxd4 {[%clk 0:03:06.7]} 4... Nf6 {[%clk 0:02:55.5]} 5. Nc3 {[%clk 0:03:08]}
5... Nc6 {[%clk 0:02:57.1]} 6. f3 {[%clk 0:03:03.3]} 6... e5 {[%clk 0:02:57.5]}
7. Nb3 {[%clk 0:03:04]} 7... Be6 {[%clk 0:02:58.7]} 8. Nd5 {[%clk 0:02:57.9]}
8... Be7 {[%clk 0:02:58.7]} 9. c4 {[%clk 0:02:55]} 9... O-O {[%clk 0:02:52.6]}
10. Be3 {[%clk 0:02:55.2]} 10... a5 {[%clk 0:02:50.9]} 11. a4 {[%clk 0:02:49.3]}
11... Nd7 {[%clk 0:02:40.9]} 12. Be2 {[%clk 0:02:39.6]} 12... Bg5 {[%clk
0:02:38.3]} 13. Bf2 {[%clk 0:02:39.9]} 13... g6 {[%clk 0:02:29.9]} 14. O-O
{[%clk 0:02:38.7]} 14... h5 {[%clk 0:02:28.3]} 15. Nc3 {[%clk 0:02:15.3]} 15...
Be7 {[%clk 0:02:20]} 16. Nb5 {[%clk 0:02:16.2]} 16... Nc5 {[%clk 0:02:18.4]} 17.
Nc1 {[%clk 0:02:13]} 17... Nb4 {[%clk 0:02:16.5]} 18. Na2 {[%clk 0:02:09.2]}
18... Nxa2 {[%clk 0:02:14.9]} 19. Rxa2 {[%clk 0:02:11.1]} 19... h4 {[%clk
0:02:02.6]} 20. b3 {[%clk 0:02:10.4]} 20... h3 {[%clk 0:02:01.9]} 21. g3 {[%clk
0:02:10.3]} 21... Ra6 {[%clk 0:01:54.1]} 22. Rd2 {[%clk 0:02:01.9]} 22... Qb8
{[%clk 0:01:55.1]} 23. Be3 {[%clk 0:01:57.3]} 23... Rc6 {[%clk 0:01:28.1]} 24.
Qb1 {[%clk 0:01:57.4]} 24... f5 {[%clk 0:01:18.9]} 25. exf5 {[%clk 0:01:31.5]}
25... gxf5 {[%clk 0:01:06.8]} 26. f4 {[%clk 0:01:32.1]} 26... Qe8 {[%clk
0:01:02.8]} 27. Bf3 {[%clk 0:01:27]} 27... e4 {[%clk 0:01:02.5]} 28. Be2 {[%clk
0:01:28.1]} 28... b6 {[%clk 0:00:58.7]} 29. Rfd1 {[%clk 0:01:23.5]} 29... Qd7
{[%clk 0:00:52]} 30. Kh1 {[%clk 0:01:20.6]} 30... Bf7 {[%clk 0:00:47.7]} 31. g4
{[%clk 0:01:14.4]} 31... Rd8 {[%clk 0:00:40.7]} 32. gxf5 {[%clk 0:01:13.5]}
32... Bf6 {[%clk 0:00:40.2]} 33. Rg1+ {[%clk 0:01:12]} 33... Kf8 {[%clk
0:00:40.9]} 34. Nd4 {[%clk 0:01:06.8]} 34... Rcc8 {[%clk 0:00:41.8]} 35. Qf1
{[%clk 0:01:07.1]} 35... Nd3 {[%clk 0:00:41.1]} 36. Qxh3 {[%clk 0:01:04.5]}
36... Ke7 {[%clk 0:00:42.3]} 37. Bxd3 {[%clk 0:01:01.2]} 37... exd3 {[%clk
0:00:42.8]} 38. Re1 {[%clk 0:00:59.2]} 38... Rh8 {[%clk 0:00:38]} 39. Bf2+
{[%clk 0:00:57.7]} 39... Kf8 {[%clk 0:00:35.2]} 40. Qxd3 {[%clk 0:00:53]} 40...
Qb7+ {[%clk 0:00:34.4]} 41. Qf3 {[%clk 0:00:52]} 41... Qxf3+ {[%clk 0:00:22.8]}
42. Nxf3 {[%clk 0:00:53.9]} 42... d5 {[%clk 0:00:19.7]} 43. cxd5 {[%clk
0:00:51]} 43... Bc3 {[%clk 0:00:20]} 44. Rc1 {[%clk 0:00:49.5]} 44... Ke7 {[%clk
0:00:18.1]} 45. d6+ {[%clk 0:00:47.1]} 45... Kd7 {[%clk 0:00:17.9]} 46. Rxc3
{[%clk 0:00:47.3]} 46... Rxc3 {[%clk 0:00:16.7]} 47. Ne5+ {[%clk 0:00:48.8]}
47... Ke8 {[%clk 0:00:10.8]} 48. d7+ {[%clk 0:00:46.3]} 48... Ke7 {[%clk
0:00:12.2]} 49. Bh4+ {[%clk 0:00:44.6]} 1-0

[Event "*** Titled Tuesday Blitz"]
[Site "Chess.com"]
[Date "2019.08.06"]
[Round "4"]
[White "paladin_ll"]
[Black "Mazanchenko_Dmitry"]
[Result "0-1"]
[WhiteElo "2168"]
[BlackElo "2195"]
[TimeControl "180+2"]
[EndTime "13:51:39 PDT"]
[Termination "Mazanchenko_Dmitry won by resignation"]

1. Nf3 {[%clk 0:02:58.2]} 1... g6 {[%clk 0:02:51.4]} 2. c4 {[%clk 0:03:00.1]}
2... Bg7 {[%clk 0:02:52.6]} 3. g3 {[%clk 0:03:01.3]} 3... d6 {[%clk 0:02:53.9]}
4. Nc3 {[%clk 0:03:02.5]} 4... e5 {[%clk 0:02:53.6]} 5. d3 {[%clk 0:03:03.5]}
5... Nc6 {[%clk 0:02:54.5]} 6. Bg2 {[%clk 0:03:04.5]} 6... Bg4 {[%clk
0:02:55.9]} 7. O-O {[%clk 0:03:05.4]} 7... Bxf3 {[%clk 0:02:51.2]} 8. Bxf3
{[%clk 0:03:05.4]} 8... Nge7 {[%clk 0:02:52.1]} 9. Bg5 {[%clk 0:03:05.6]} 9...
O-O {[%clk 0:02:51.7]} 10. Bxe7 {[%clk 0:03:06.1]} 10... Qxe7 {[%clk 0:02:52.5]}
11. Nd5 {[%clk 0:03:05.6]} 11... Qd8 {[%clk 0:02:53.8]} 12. Rb1 {[%clk
0:03:06.3]} 12... Nd4 {[%clk 0:02:54]} 13. Bg2 {[%clk 0:03:05.6]} 13... c6
{[%clk 0:02:55.2]} 14. Nc3 {[%clk 0:03:06.6]} 14... f5 {[%clk 0:02:56.2]} 15. b4
{[%clk 0:03:04.7]} 15... f4 {[%clk 0:02:49.3]} 16. b5 {[%clk 0:03:03.6]} 16...
g5 {[%clk 0:02:44.3]} 17. a4 {[%clk 0:02:52]} 17... g4 {[%clk 0:02:43.3]} 18. a5
{[%clk 0:02:44.8]} 18... f3 {[%clk 0:02:43.2]} 19. exf3 {[%clk 0:02:43.8]} 19...
Nxf3+ {[%clk 0:02:36.2]} 20. Bxf3 {[%clk 0:02:37.8]} 20... gxf3 {[%clk
0:02:36.9]} 21. a6 {[%clk 0:02:34.3]} 21... bxa6 {[%clk 0:02:30.1]} 22. bxc6
{[%clk 0:02:34.3]} 22... Qc8 {[%clk 0:02:30.6]} 23. Kh1 {[%clk 0:02:30.3]} 23...
Qxc6 {[%clk 0:02:30.3]} 24. Nd5 {[%clk 0:02:26.9]} 24... Qd7 {[%clk 0:02:26.2]}
25. Rg1 {[%clk 0:02:20.1]} 25... Rab8 {[%clk 0:02:19.4]} 26. Rxb8 {[%clk
0:02:13.9]} 26... Rxb8 {[%clk 0:02:21.3]} 27. Qxf3 {[%clk 0:02:14]} 27... a5
{[%clk 0:02:19.9]} 28. Kg2 {[%clk 0:02:06.2]} 28... a4 {[%clk 0:02:19.8]} 29.
Nc3 {[%clk 0:01:32.1]} 29... a3 {[%clk 0:02:13.4]} 30. Qd5+ {[%clk 0:01:30.6]}
30... Qf7 {[%clk 0:01:59.2]} 31. Qxd6 {[%clk 0:01:24]} 31... Rf8 {[%clk
0:01:59.6]} 32. Ne4 {[%clk 0:01:20.7]} 32... Qf3+ {[%clk 0:01:59.4]} 33. Kh3
{[%clk 0:01:11.3]} 33... Rf5 {[%clk 0:01:44.1]} 34. Qd5+ {[%clk 0:00:48.8]}
34... Kh8 {[%clk 0:01:43.6]} 35. Qd8+ {[%clk 0:00:40.1]} 35... Bf8 {[%clk
0:01:43.7]} 36. Ng5 {[%clk 0:00:22.8]} 36... Qh5+ {[%clk 0:01:42.9]} 37. Kg2
{[%clk 0:00:22.4]} 37... Qxg5 {[%clk 0:01:38.5]} 38. Qa5 {[%clk 0:00:09.6]}
38... e4 {[%clk 0:01:32.1]} 39. Qc3+ {[%clk 0:00:06]} 39... Qg7 {[%clk
0:01:31.4]} 40. d4 {[%clk 0:00:04.2]} 40... Qb7 {[%clk 0:01:22.9]} 41. c5 {[%clk
0:00:03.5]} 41... Qb2 {[%clk 0:01:17.6]} 42. Qxb2 {[%clk 0:00:03.6]} 42... axb2
{[%clk 0:01:18.5]} 43. Rb1 {[%clk 0:00:05.1]} 43... Bg7 {[%clk 0:01:18.6]} 44.
Rxb2 {[%clk 0:00:05.4]} 44... Bxd4 {[%clk 0:01:19.8]} 45. Rb8+ {[%clk
0:00:05.6]} 45... Kg7 {[%clk 0:01:20.1]} 46. Rb7+ {[%clk 0:00:07.1]} 46... Kg6
{[%clk 0:01:21.3]} 47. Rxa7 {[%clk 0:00:07.5]} 47... Rxf2+ {[%clk 0:01:22.3]}
48. Kh3 {[%clk 0:00:08.1]} 48... Bxc5 {[%clk 0:01:23.5]} 49. Ra6+ {[%clk
0:00:10]} 49... Kg7 {[%clk 0:01:19.6]} 50. Kg4 {[%clk 0:00:11.9]} 50... e3
{[%clk 0:01:16.8]} 51. h4 {[%clk 0:00:11.2]} 51... e2 {[%clk 0:01:17.4]} 52. Re6
{[%clk 0:00:11.2]} 52... Bb4 {[%clk 0:01:18.3]} 53. Kg5 {[%clk 0:00:09.5]} 53...
e1=Q {[%clk 0:01:18.3]} 0-1